{"text_format":"1","workbook":"xlsx","n_sheets":6,"sheets":["الغلاف","الغلاف ( للطباعة ) ","فكرة التصويت الثنائي","لوحة التصويت و الفرز ","التصويت و النسبة المؤوية ","الفرز و الترتيب"],"not_rendered":{"charts":0,"images":7,"macros":1,"external_links":0,"defined_names":0,"comments":0,"pivot_tables":0},"unopened":[],"bounds":{"document_bytes":16777216,"sheet_cells":100000,"rows_first":2000,"rows_last":500,"rows_between":2000,"halvings":0,"cell_chars":16384,"cell_head_chars":4096},"cells_cut":0,"cells_raw":0,"read":"whole","date_system":"1900"}

{"sheet":"الغلاف","index":0,"n_rows":0,"n_cols":0,"rows_kept":0,"cut":false,"hidden":false,"merged":[]}

{"sheet":"الغلاف ( للطباعة ) ","index":1,"n_rows":0,"n_cols":0,"rows_kept":0,"cut":false,"hidden":false,"merged":[]}

{"sheet":"فكرة التصويت الثنائي","index":2,"n_rows":0,"n_cols":0,"rows_kept":0,"cut":false,"hidden":false,"merged":[]}

{"sheet":"لوحة التصويت و الفرز ","index":3,"n_rows":23,"n_cols":13,"rows_kept":23,"cut":false,"hidden":false,"merged":[[6,8,6,11],[8,1,10,12],[7,8,7,9],[6,1,6,3]]}
[]
[]
[]
[]
[]
[]
[null,"عدد المشاركين في التصويت",null,null,null,null,null,null,"عدد الخيارات ",null,null,null,8]
[]
[null,"بسم الله الرحمن الرحيم\nمن خلال الجدول التالي يتم التفضيل المنطقي بين الخيارات المدونة عن طريق التصويت الثنائي.\n"]
[]
[]
[]
[null,null,null,null,1,2,3,4,5,6,7,8]
[null,null,null,null,{"$f":"D15","v":"الخيار الأول"},{"$f":"D16","v":"الخيار الثاني"},{"$f":"D17","v":"الخيار الثالث"},{"$f":"D18","v":"الخيار الرابع"},{"$f":"D19","v":"الخيار الخامس"},{"$f":"D20","v":"الخيار السادس"},{"$f":"D21","v":"الخيار السابع"},{"$f":"D22","v":"الخيار الثامن"}]
[null,null,1,"الخيار الأول",{"$f":"E7/2","v":0},{"$f":"E7-E16","v":0},{"$f":"E7-E17","v":0},{"$f":"E7-E18","v":0},{"$f":"E7-E19","v":0},{"$f":"E7-E20","v":0},{"$f":"E7-E21","v":0},{"$f":"E7-E22","v":0}]
[null,null,2,"الخيار الثاني",null,{"$f":"E7/2","v":0},{"$f":"E7-F17","v":0},{"$f":"E7-F18","v":0},{"$f":"E7-F19","v":0},{"$f":"E7-F20","v":0},{"$f":"E7-F21","v":0},{"$f":"E7-F22","v":0}]
[null,null,3,"الخيار الثالث",null,null,{"$f":"E7/2","v":0},{"$f":"E7-G18","v":0},{"$f":"E7-G19","v":0},{"$f":"E7-G20","v":0},{"$f":"E7-G21","v":0},{"$f":"E7-G22","v":0}]
[null,null,4,"الخيار الرابع",null,null,null,{"$f":"E7/2","v":0},{"$f":"E7-H19","v":0},{"$f":"E7-H20","v":0},{"$f":"E7-H21","v":0},{"$f":"E7-H22","v":0}]
[null,null,5,"الخيار الخامس",null,null,null,null,{"$f":"E7/2","v":0},{"$f":"E7-I20","v":0},{"$f":"E7-I21","v":0},{"$f":"E7-I22","v":0}]
[null,null,6,"الخيار السادس",null,null,null,null,null,{"$f":"E7/2","v":0},{"$f":"E7-J21","v":0},{"$f":"E7-J22","v":0}]
[null,null,7,"الخيار السابع",null,null,null,null,null,null,{"$f":"E7/2","v":0},{"$f":"E7-K22","v":0}]
[null,null,8,"الخيار الثامن",null,null,null,null,null,null,null,{"$f":"E7/2","v":0}]
[null,null,null,null,{"$f":"SUM(E15:E22)","v":0},0,0,0,0,0,0,0]

{"sheet":"التصويت و النسبة المؤوية ","index":4,"n_rows":12,"n_cols":4,"rows_kept":12,"cut":false,"hidden":false,"merged":[[1,1,1,3]]}
[]
[null,"نتيجة التصويت و النسبة المؤوية "]
[]
[null,"الــــــعبـــــــــــــــــــــــــــــــــــــارة ","النقاط ","النسبه "]
[null,{"$f":"'لوحة التصويت و الفرز '!D15","v":"الخيار الأول"},{"$f":"'لوحة التصويت و الفرز '!E23","v":0},{"$f":"C5/(('لوحة التصويت و الفرز '!M7)*'لوحة التصويت و الفرز '!E7)","v":{"$error":"#DIV/0!"}}]
[null,{"$f":"'لوحة التصويت و الفرز '!D16","v":"الخيار الثاني"},{"$f":"'لوحة التصويت و الفرز '!F23","v":0},{"$f":"C6/(('لوحة التصويت و الفرز '!M7)*'لوحة التصويت و الفرز '!E7)","v":{"$error":"#DIV/0!"}}]
[null,{"$f":"'لوحة التصويت و الفرز '!D17","v":"الخيار الثالث"},{"$f":"'لوحة التصويت و الفرز '!G23","v":0},{"$f":"C7/(('لوحة التصويت و الفرز '!M7)*'لوحة التصويت و الفرز '!E7)","v":{"$error":"#DIV/0!"}}]
[null,{"$f":"'لوحة التصويت و الفرز '!D18","v":"الخيار الرابع"},{"$f":"'لوحة التصويت و الفرز '!H23","v":0},{"$f":"C8/(('لوحة التصويت و الفرز '!M7)*'لوحة التصويت و الفرز '!E7)","v":{"$error":"#DIV/0!"}}]
[null,{"$f":"'لوحة التصويت و الفرز '!D19","v":"الخيار الخامس"},{"$f":"'لوحة التصويت و الفرز '!I23","v":0},{"$f":"C9/(('لوحة التصويت و الفرز '!M7)*'لوحة التصويت و الفرز '!E7)","v":{"$error":"#DIV/0!"}}]
[null,{"$f":"'لوحة التصويت و الفرز '!D20","v":"الخيار السادس"},{"$f":"'لوحة التصويت و الفرز '!J23","v":0},{"$f":"C10/(('لوحة التصويت و الفرز '!M7)*'لوحة التصويت و الفرز '!E7)","v":{"$error":"#DIV/0!"}}]
[null,{"$f":"'لوحة التصويت و الفرز '!D21","v":"الخيار السابع"},{"$f":"'لوحة التصويت و الفرز '!K23","v":0},{"$f":"C11/(('لوحة التصويت و الفرز '!M7)*'لوحة التصويت و الفرز '!E7)","v":{"$error":"#DIV/0!"}}]
[null,{"$f":"'لوحة التصويت و الفرز '!D22","v":"الخيار الثامن"},{"$f":"'لوحة التصويت و الفرز '!L23","v":0},{"$f":"C12/(('لوحة التصويت و الفرز '!M7)*'لوحة التصويت و الفرز '!E7)","v":{"$error":"#DIV/0!"}}]

{"sheet":"الفرز و الترتيب","index":5,"n_rows":12,"n_cols":4,"rows_kept":12,"cut":false,"hidden":false,"merged":[[1,1,1,3]]}
[]
[null,"فرز و ترتيب نتيجة التصويت "]
[]
[null,"الــــــعبــــــــــــــــــــــــارة ","النقاط ","النسبه "]
[null,{"$f":"'لوحة التصويت و الفرز '!D15","v":"الخيار الأول"},{"$f":"'لوحة التصويت و الفرز '!E23","v":0},{"$f":"C5/(('لوحة التصويت و الفرز '!M7)*'لوحة التصويت و الفرز '!E7)","v":{"$error":"#DIV/0!"}}]
[null,{"$f":"'لوحة التصويت و الفرز '!D22","v":"الخيار الثامن"},{"$f":"'لوحة التصويت و الفرز '!L23","v":0},{"$f":"C6/(('لوحة التصويت و الفرز '!M7)*'لوحة التصويت و الفرز '!E7)","v":{"$error":"#DIV/0!"}}]
[null,{"$f":"'لوحة التصويت و الفرز '!D17","v":"الخيار الثالث"},{"$f":"'لوحة التصويت و الفرز '!G23","v":0},{"$f":"C7/(('لوحة التصويت و الفرز '!M7)*'لوحة التصويت و الفرز '!E7)","v":{"$error":"#DIV/0!"}}]
[null,{"$f":"'لوحة التصويت و الفرز '!D20","v":"الخيار السادس"},{"$f":"'لوحة التصويت و الفرز '!J23","v":0},{"$f":"C8/(('لوحة التصويت و الفرز '!M7)*'لوحة التصويت و الفرز '!E7)","v":{"$error":"#DIV/0!"}}]
[null,{"$f":"'لوحة التصويت و الفرز '!D21","v":"الخيار السابع"},{"$f":"'لوحة التصويت و الفرز '!K23","v":0},{"$f":"C9/(('لوحة التصويت و الفرز '!M7)*'لوحة التصويت و الفرز '!E7)","v":{"$error":"#DIV/0!"}}]
[null,{"$f":"'لوحة التصويت و الفرز '!D16","v":"الخيار الثاني"},{"$f":"'لوحة التصويت و الفرز '!F23","v":0},{"$f":"C10/(('لوحة التصويت و الفرز '!M7)*'لوحة التصويت و الفرز '!E7)","v":{"$error":"#DIV/0!"}}]
[null,{"$f":"'لوحة التصويت و الفرز '!D19","v":"الخيار الخامس"},{"$f":"'لوحة التصويت و الفرز '!I23","v":0},{"$f":"C11/(('لوحة التصويت و الفرز '!M7)*'لوحة التصويت و الفرز '!E7)","v":{"$error":"#DIV/0!"}}]
[null,{"$f":"'لوحة التصويت و الفرز '!D18","v":"الخيار الرابع"},{"$f":"'لوحة التصويت و الفرز '!H23","v":0},{"$f":"C12/(('لوحة التصويت و الفرز '!M7)*'لوحة التصويت و الفرز '!E7)","v":{"$error":"#DIV/0!"}}]